bitfinex/quotes_SOLUSD_20250310
["timestamp","ask_amount","ask_price","bid_price","bid_amount"]
[1741640339858,39.35271807,119.48,119.46,0.063]
[1741640340358,39.35271807,119.47,119.46,0.063]
[1741640340577,121.15271807,119.47,119.46,0.063]
[1741640341143,78.70543614,119.47,119.46,0.063]
[1741640341343,94.05087925,119.47,119.46,0.063]
[1741640341861,54.55599961,119.47,119.46,0.063]
[1741640342065,20.0,119.44,119.41,0.063]
[1741640342373,39.35271807,119.42,119.41,0.063]
[1741640342753,40.61421807,119.42,119.41,0.063]
[1741640343751,48.98801807,119.42,119.41,0.063]
[1741640344066,303.48,119.43,119.41,0.063]
[1741640344272,39.35271807,119.42,119.41,0.063]
[1741640344449,40.61421807,119.42,119.41,0.063]
[1741640345974,48.98801807,119.42,119.41,0.063]
[1741640346951,88.48289771,119.42,119.41,0.063]
[1741640347156,49.13017964,119.42,119.41,0.063]
[1741640347472,89.837,119.41,119.34,8.4424]
[1741640347675,39.35271807,119.37,119.34,0.063]
[1741640347971,81.737,119.36,119.34,0.063]
[1741640348277,9.92,119.35,119.34,0.063]
[1741640348855,50.53421807,119.35,119.34,0.063]
[1741640349887,58.91291807,119.35,119.34,0.063]
[1741640350561,20.0,119.32,119.24,27.76296157]
[1741640350751,39.35271807,119.3,119.26,8.385]
[1741640350956,9.9,119.29,119.25,2.383]
[1741640351169,9.9,119.29,119.25,50.12121807]
[1741640351587,49.25271807,119.29,119.25,8.3855]
[1741640351776,89.9,119.28,119.22,8.4508]
[1741640351966,89.9,119.28,119.24,39.35271807]
[1741640352159,89.9,119.28,119.23,0.14216157]
[1741640352359,89.9,119.28,119.23,39.49487964]
[1741640352583,89.9,119.28,119.23,39.35271807]
[1741640352762,39.35271807,119.25,119.22,0.063]
[1741640353100,91.72,119.24,119.22,0.063]
[1741640353258,9.92,119.24,119.23,39.35271807]
[1741640353585,9.92,119.24,119.22,0.063]
[1741640354287,1.2615,119.23,119.22,0.063]
[1741640354487,40.61421807,119.23,119.22,0.063]
[1741640354684,122.41421807,119.23,119.22,0.063]
[1741640354983,344.35421807,119.23,119.22,0.063]
[1741640355182,343.09271807,119.23,119.22,0.063]
[1741640355761,351.47981807,119.23,119.22,0.063]
[1741640355969,277.92197964,119.23,119.22,0.063]
[1741640356164,317.27469771,119.23,119.22,0.063]
[1741640356368,277.77981807,119.23,119.22,0.063]
[1741640357082,269.39271807,119.23,119.22,0.063]
[1741640357862,277.92197964,119.23,119.22,0.063]
[1741640358068,269.82197964,119.23,119.22,0.063]
[1741640359163,261.29271807,119.23,119.22,0.063]
[1741640359767,269.67981807,119.23,119.22,0.063]
[1741640359992,309.17469771,119.23,119.22,0.063]
[1741640360185,309.31685928,119.23,119.22,0.063]
[1741640360375,78.70543614,119.22,119.21,0.063]
[1741640360581,79.96693614,119.22,119.21,0.063]
[1741640361097,20.0,119.19,119.11,60.48357964]
[1741640361294,39.35271807,119.16,119.12,14.5425]
[1741640361499,39.35271807,119.15,119.12,8.3946]
[1741640361797,40.61421807,119.17,119.12,8.3946]
[1741640361993,39.35271807,119.16,119.12,8.3946]
[1741640362194,83.0615,119.15,119.12,8.3946]
[1741640362378,81.8,119.15,119.12,8.3946]
[1741640362895,9.92,119.18,119.15,0.14216157]
[1741640363199,9.92,119.18,119.15,39.49487964]
[1741640363367,9.92,119.18,119.16,39.35271807]
[1741640363574,81.8,119.21,119.17,39.35271807]
[1741640363978,1.2615,119.2,119.16,39.35271807]
[1741640364298,1.2615,119.2,119.14,8.3934]
[1741640364299,122.41421807,119.21,119.15,39.35271807]
[1741640364497,122.41421807,119.21,119.16,39.35271807]
[1741640364677,121.15271807,119.21,119.16,39.35271807]
[1741640364883,81.8,119.21,119.17,39.35271807]
[1741640365277,81.8,119.21,119.16,39.35271807]
[1741640365487,81.8,119.21,119.17,39.35271807]
[1741640365874,81.8,119.21,119.18,8.3906]
[1741640366289,81.8,119.21,119.18,68.71991807]
[1741640367288,231.86,119.23,119.19,39.49487964]
[1741640368104,231.86,119.23,119.2,8.3892]
[1741640368286,1.2615,119.22,119.17,2.3237]
[1741640368489,39.35271807,119.21,119.17,8.3908]
[1741640368996,1.2615,119.2,119.17,8.3908]
[1741640369373,39.35271807,119.2,119.15,39.35271807]
[1741640369588,39.35271807,119.2,119.15,8.3925]
[1741640369589,1.2615,119.19,119.15,8.3925]
[1741640369777,9.92,119.18,119.15,8.3925]
[1741640369979,9.92,119.18,119.15,47.74521807]
[1741640370497,9.92,119.18,119.15,68.72711807]
[1741640370704,9.92,119.18,119.16,39.49487964]
[1741640370882,9.92,119.18,119.16,39.35271807]
[1741640371201,9.92,119.18,119.15,47.74521807]
[1741640371494,9.92,119.18,119.15,68.72711807]
[1741640371688,9.92,119.18,119.16,39.35271807]
[1741640371869,9.92,119.18,119.15,68.72711807]
[1741640373197,9.92,119.18,119.16,0.14216157]
[1741640373389,9.92,119.18,119.16,39.49487964]
[1741640373701,9.92,119.18,119.16,0.14216157]
[1741640374169,9.92,119.18,119.17,8.3913]
[1741640375381,9.92,119.18,119.16,8.3918]
[1741640376786,1.2615,119.2,119.16,8.3918]
[1741640376976,9.92,119.19,119.16,8.3918]
[1741640377878,9.92,119.19,119.15,47.80811807]
[1741640378079,9.92,119.19,119.15,8.4554]
[1741640378303,83.0615,119.18,119.15,0.063]
[1741640378481,91.4522,119.18,119.15,0.063]
[1741640378691,81.8,119.17,119.15,0.063]
[1741640379002,83.0615,119.17,119.15,0.063]
[1741640380203,81.8,119.17,119.15,0.063]
[1741640381306,11.1815,119.19,119.15,39.41571807]
[1741640381490,9.92,119.19,119.15,39.41571807]
[1741640381798,9.92,119.19,119.15,0.063]
[1741640381799,1.2615,119.18,119.15,0.063]
[1741640382005,40.61421807,119.18,119.15,0.063]
[1741640382574,1.2615,119.18,119.15,0.063]
[1741640383304,11.1815,119.19,119.15,39.41571807]
[1741640383607,9.92,119.19,119.15,39.41571807]
[1741640383807,9.92,119.19,119.16,8.392]
[1741640385305,40.61421807,119.2,119.16,8.392]
[1741640385510,50.53421807,119.2,119.16,8.392]
[1741640385678,9.92,119.2,119.16,68.72481807]
[1741640385884,1.2615,119.19,119.16,8.392]
[1741640386381,40.61421807,119.19,119.15,8.4554]
[1741640387203,50.53421807,119.2,119.15,47.80811807]
[1741640387416,9.92,119.2,119.15,47.80811807]
[1741640388104,49.27271807,119.2,119.15,68.79001807]
[1741640388411,1.2615,119.19,119.15,47.80811807]
[1741640388989,1.2615,119.19,119.15,0.063]
[1741640388990,40.61421807,119.19,119.15,0.063]
[1741640389316,39.35271807,119.18,119.15,0.063]
[1741640389608,1.2615,119.17,119.15,0.063]
[1741640390004,1.2615,119.17,119.15,8.4556]
[1741640390206,1.2615,119.18,119.15,0.063]
[1741640390705,49.00491807,119.18,119.15,0.063]
[1741640390897,44.00491807,119.18,119.15,0.063]
[1741640391504,230.38,119.19,119.15,0.063]
[1741640391709,278.12301807,119.19,119.15,0.063]
[1741640392006,47.45271807,119.18,119.15,0.063]
[1741640392307,47.74401807,119.17,119.15,0.063]
[1741640392814,47.45271807,119.16,119.15,0.063]
[1741640392993,39.49487964,119.16,119.15,0.063]
[1741640393712,39.35271807,119.16,119.15,0.063]
[1741640394214,39.35271807,119.17,119.15,0.063]
[1741640394386,39.35271807,119.16,119.15,0.063]
[1741640396296,47.74471807,119.16,119.15,0.063]
[1741640396697,39.35271807,119.16,119.15,0.063]
[1741640396892,47.74471807,119.16,119.15,0.063]
[1741640397309,47.88687964,119.16,119.15,0.063]
[1741640397814,94.0485858,119.16,119.15,0.063]
[1741640398018,47.88687964,119.16,119.15,0.063]
[1741640398596,87.23959771,119.16,119.15,0.063]
[1741640398801,94.11886516,119.16,119.15,0.063]
[1741640399096,104.03886516,119.16,119.15,0.063]
[1741640399303,104.03886516,119.16,119.1,0.063]
[1741640399309,20.0,119.13,119.1,0.063]
[1741640399621,39.35271807,119.12,119.1,0.063]
[1741640399800,9.92,119.11,119.1,0.063]
[1741640402516,49.27271807,119.11,119.1,0.063]
[1741640403314,49.41487964,119.11,119.1,0.063]
[1741640404424,9.92,119.11,119.1,0.063]
[1741640405906,49.27271807,119.11,119.1,0.063]
[1741640407415,8.1,119.13,119.1,39.41571807]
[1741640407600,222.36,119.14,119.11,39.35271807]
[1741640408321,222.36,119.14,119.13,39.35271807]
[1741640408999,222.36,119.14,119.12,39.35271807]
[1741640409396,222.36,119.14,119.13,39.35271807]
[1741640409591,222.36,119.14,119.12,39.35271807]
[1741640409924,222.36,119.14,119.1,2.63856157]
[1741640409925,222.36,119.14,119.1,2.4964]
[1741640410222,131.07271807,119.13,119.1,0.063]
[1741640410397,121.15271807,119.12,119.1,0.063]
[1741640410796,81.8,119.12,119.1,0.063]
[1741640411108,81.8,119.12,119.1,39.41571807]
[1741640411619,81.8,119.12,119.1,0.063]
[1741640412321,81.8,119.12,119.11,6.5799]
[1741640412816,81.8,119.12,119.1,0.063]
[1741640413021,9.92,119.13,119.1,0.063]
[1741640413722,9.92,119.13,119.12,39.35271807]
[1741640414308,9.92,119.13,119.1,39.41571807]
[1741640414718,9.92,119.13,119.12,39.35271807]
[1741640418029,9.92,119.13,119.11,0.28432314]
[1741640418328,222.36,119.14,119.11,0.28432314]
[1741640420336,24.83508101,119.14,119.11,0.28432314]
[1741640420509,24.83508101,119.14,119.1,0.063]
[1741640421530,20.0,119.12,119.1,0.063]
[1741640422030,24.83508101,119.13,119.1,0.063]
[1741640422332,39.74165467,119.13,119.1,0.063]
[1741640423137,20.0,119.13,119.1,0.063]
[1741640423325,81.8,119.13,119.1,39.80465467]
[1741640424629,8.1,119.14,119.1,39.80465467]
[1741640424630,20.0,119.12,119.1,0.063]
[1741640424839,39.74165467,119.14,119.1,0.063]
[1741640425512,39.77165467,119.15,119.1,0.063]
[1741640425814,39.74165467,119.14,119.1,0.063]
[1741640426225,39.74165467,119.13,119.1,0.063]
[1741640427740,81.8,119.13,119.1,0.063]
[1741640429118,20.0,119.11,119.1,0.063]
[1741640429514,59.88381624,119.11,119.1,0.063]
[1741640430840,68.27941624,119.11,119.1,0.063]
[1741640431017,68.42157781,119.11,119.1,0.063]
[1741640432348,290.69941624,119.11,119.1,0.063]
[1741640433143,290.84157781,119.11,119.1,0.063]
[1741640433350,222.42,119.11,119.1,0.063]
[1741640433646,232.32,119.11,119.1,0.063]
[1741640434325,280.45725467,119.11,119.1,0.063]
[1741640434526,232.32,119.11,119.1,0.063]
[1741640435939,222.42,119.11,119.1,39.80465467]
[1741640436242,9.93,119.15,119.11,2.4249]
[1741640436454,0.03,119.15,119.13,39.74165467]
[1741640436939,0.03,119.15,119.11,2.4249]
[1741640436940,0.03,119.15,119.12,39.74165467]
[1741640437128,0.03,119.15,119.11,50.56195467]
[1741640438153,0.03,119.15,119.13,39.74165467]
[1741640439234,0.03,119.15,119.14,39.88381624]
[1741640439466,0.03,119.15,119.14,45.98021624]
[1741640441037,0.03,119.15,119.14,54.37361624]
[1741640442059,0.03,119.15,119.13,8.3939]
[1741640442247,0.03,119.15,119.12,39.74165467]
[1741640442450,0.03,119.15,119.11,8.9986]
[1741640442645,9.9,119.14,119.1,39.80465467]
[1741640442960,9.9,119.14,119.1,0.063]
[1741640443441,9.9,119.14,119.1,39.80465467]
[1741640443642,18.2936,119.14,119.1,39.80465467]
[1741640444569,9.9,119.14,119.1,39.80465467]
[1741640445446,9.9,119.14,119.11,39.74165467]
[1741640445761,9.9,119.14,119.1,48.20065467]
[1741640446668,9.9,119.14,119.1,8.459]
[1741640447166,139.83505467,119.14,119.1,0.063]
[1741640448364,124.93090882,119.14,119.1,0.063]
[1741640448775,24.83750882,119.12,119.1,0.063]
[1741640449069,20.0,119.11,119.1,0.063]
[1741640449446,44.83750882,119.11,119.1,0.063]
[1741640449846,44.97967039,119.11,119.1,0.063]
[1741640450072,0.14216157,119.1,119.09,0.063]
[1741640450250,49.81717921,119.1,119.09,0.063]
[1741640450444,8.24216157,119.09,119.08,0.063]
[1741640450766,257.25967039,119.09,119.08,0.063]
[1741640450966,257.40183196,119.09,119.08,0.063]
[1741640451141,257.40183196,119.09,119.08,0.0001]
[1741640451758,259.40183196,119.09,119.08,0.0001]
[1741640452165,257.40183196,119.09,119.08,0.0001]
[1741640452374,274.36058626,119.09,119.08,0.0001]
[1741640452578,274.36058626,119.09,119.05,0.063]
[1741640452579,20.14216157,119.06,119.05,0.063]
[1741640452756,66.58132469,119.06,119.05,0.063]
[1741640453077,115.5389056,119.06,119.04,0.16935363]
[1741640453371,79.87684938,119.05,119.04,5.363e-05]
[1741640454057,161.67684938,119.05,119.04,5.363e-05]
[1741640454254,171.57684938,119.05,119.04,5.363e-05]
[1741640454450,131.78058626,119.05,119.04,5.363e-05]
[1741640454650,140.03822469,119.05,119.04,5.363e-05]
[1741640454853,131.63842469,119.05,119.04,5.363e-05]
[1741640455060,131.49626312,119.05,119.04,5.363e-05]
[1741640455271,99.8,119.05,119.04,5.363e-05]
[1741640455473,81.8,119.08,119.04,39.79631675]
[1741640455668,232.28,119.09,119.06,39.79626312]
[1741640456047,232.28,119.09,119.07,39.79626312]
[1741640456273,222.38,119.09,119.08,39.79626312]
[1741640456572,6.80856674,119.15,119.08,39.79626312]
[1741640456573,9.9,119.12,119.09,2.44876157]
[1741640456771,9.9,119.12,119.11,39.79626312]
[1741640459252,9.9,119.12,119.08,8.3977]
[1741640459457,9.9,119.12,119.1,39.79626312]
[1741640459878,9.9,119.12,119.11,39.79626312]
[1741640461462,9.9,119.12,119.1,39.79626312]
[1741640462080,9.9,119.12,119.08,8.3976]
[1741640462081,9.9,119.12,119.07,8.54046157]
[1741640462258,9.9,119.12,119.05,8.5073]
[1741640462259,18.2951,119.12,119.05,8.5073]
[1741640462460,280.53136312,119.12,119.07,39.79626312]
[1741640462668,89.9,119.11,119.06,39.79626312]
[1741640462977,138.23472469,119.1,119.05,39.79626312]
[1741640463278,121.59626312,119.09,119.04,0.06305363]
[1741640463485,81.8,119.08,119.04,0.06305363]
[1741640463655,9.9,119.07,119.04,0.06305363]
[1741640464177,9.9,119.07,119.06,39.79626312]
[1741640464365,9.9,119.07,119.04,0.06305363]
[1741640464970,18.2985,119.07,119.04,0.06305363]
[1741640465172,81.8,119.06,119.04,0.06305363]
[1741640465477,81.8,119.05,119.04,0.06305363]
[1741640466391,81.8,119.05,119.04,39.85931675]
[1741640466558,9.9,119.07,119.04,39.85931675]
[1741640466980,9.9,119.07,119.05,8.3998]
[1741640467578,81.8,119.09,119.06,39.79626312]
[1741640467779,81.8,119.11,119.08,39.79626312]
[1741640467955,81.8,119.11,119.09,39.79626312]
[1741640468374,81.8,119.11,119.08,39.79626312]
[1741640468968,90.1957,119.11,119.07,39.79626312]
[1741640469176,81.8,119.11,119.07,39.79626312]
[1741640469372,81.8,119.11,119.08,39.79626312]
[1741640469572,232.37,119.12,119.1,39.79626312]
[1741640469573,222.47,119.12,119.1,39.79626312]
[1741640469779,222.47,119.12,119.11,39.79626312]
[1741640469978,222.47,119.12,119.1,39.79626312]
[1741640470485,222.47,119.12,119.07,2.4609]
[1741640470486,222.47,119.12,119.11,39.79626312]
[1741640470784,222.63741676,119.12,119.11,39.79626312]
[1741640471486,222.63741676,119.12,119.11,48.19186312]
[1741640472484,222.63741676,119.12,119.11,39.79626312]
[1741640472866,0.19741676,119.12,119.11,48.19186312]
[1741640473784,0.19741676,119.12,119.11,39.79626312]
[1741640473959,0.19741676,119.12,119.09,39.79626312]
[1741640474156,0.19741676,119.12,119.08,48.19376312]
[1741640474386,0.19741676,119.12,119.09,39.79626312]
[1741640474586,0.19741676,119.12,119.1,39.79626312]
[1741640474982,81.99741676,119.12,119.06,8.3991]
[1741640475174,81.8,119.11,119.07,0.14216157]
[1741640475368,81.8,119.11,119.1,39.79626312]
[1741640475567,0.19741676,119.12,119.1,39.79626312]
[1741640476069,8.59231676,119.12,119.06,8.3991]
[1741640476268,8.59231676,119.12,119.06,39.79626312]
[1741640476269,81.8,119.11,119.06,39.79626312]
[1741640476470,9.88,119.1,119.07,39.79626312]
[1741640476864,9.88,119.1,119.06,39.79626312]
[1741640477071,9.88,119.1,119.05,48.19576312]
[1741640478076,9.88,119.1,119.06,39.79626312]
[1741640478786,91.68,119.1,119.06,39.79626312]
[1741640478978,91.68,119.1,119.07,39.79626312]
[1741640479177,91.68,119.1,119.09,39.79626312]
[1741640479178,9.88,119.1,119.09,39.79626312]
[1741640479794,9.88,119.1,119.09,48.19326312]
[1741640479972,0.19741676,119.12,119.1,0.14216157]
[1741640480290,0.19741676,119.12,119.11,39.79626312]
[1741640480992,1.676e-05,119.12,119.11,39.79626312]
[1741640481186,1.676e-05,119.12,119.11,39.93842469]
[1741640481411,7.927e-05,119.13,119.11,39.93842469]
[1741640481569,7.927e-05,119.13,119.12,39.79626312]
[1741640481888,7.927e-05,119.13,119.12,48.19106312]
[1741640482192,7.927e-05,119.13,119.12,48.33322469]
[1741640482887,7.814e-05,119.15,119.13,0.28432314]
[1741640483085,2.396e-05,119.16,119.15,0.14216157]
[1741640483262,0.18420721,119.2,119.16,0.14216157]
[1741640483263,5.57e-06,119.19,119.16,0.14216157]
[1741640483465,0.18420721,119.2,119.19,0.14216157]
[1741640483665,0.03,119.21,119.2,8.53136157]
[1741640483873,0.03,119.21,119.2,48.18546312]
[1741640484289,0.03,119.21,119.2,39.79626312]
[1741640485492,0.03,119.21,119.19,39.79626312]
[1741640485701,0.03,119.21,119.18,39.79626312]
[1741640486497,0.03,119.21,119.19,39.79626312]
[1741640486998,39.82626312,119.21,119.17,8.3912]
[1741640488093,59.79626312,119.2,119.14,48.18946312]
[1741640488281,39.79626312,119.19,119.14,48.18946312]
[1741640488478,89.93,119.21,119.15,40.08058626]
[1741640488479,9.88,119.18,119.15,40.08058626]
[1741640488883,9.88,119.18,119.17,0.14216157]
[1741640489089,0.03,119.21,119.18,0.28432314]
[1741640489275,0.03,119.21,119.2,39.79626312]
[1741640489491,0.03,119.21,119.18,0.14216157]
[1741640489794,39.82626312,119.21,119.15,0.14216157]
[1741640489997,39.82626312,119.21,119.15,40.08058626]
[1741640490302,49.67626312,119.2,119.15,48.33082469]
[1741640490503,49.67626312,119.2,119.15,8.3924]
[1741640490794,0.16735289,119.16,119.13,48.18966312]
[1741640490986,39.96361601,119.16,119.12,8.3946]
[1741640491173,39.96361601,119.16,119.12,48.19086312]
[1741640491174,0.16735289,119.16,119.12,48.19086312]
[1741640491796,0.16735289,119.16,119.13,39.93842469]
[1741640492009,0.16735289,119.16,119.15,0.14216157]
[1741640492182,5.289e-05,119.16,119.15,48.47328626]
[1741640492385,5.731e-05,119.18,119.17,29.33902314]
[1741640492600,5.731e-05,119.18,119.17,69.13528626]
[1741640493496,5.731e-05,119.18,119.17,6.86562314]
[1741640493702,5.731e-05,119.18,119.17,0.28432314]
[1741640493881,5.731e-05,119.18,119.17,39.93842469]
[1741640494082,5.731e-05,119.18,119.17,0.14216157]
[1741640494286,5.731e-05,119.18,119.14,39.79626312]
[1741640494484,5.731e-05,119.18,119.11,0.14216157]
[1741640494485,39.79626312,119.15,119.11,0.14216157]
[1741640495186,39.79626312,119.16,119.11,0.14216157]
[1741640495383,9.86,119.15,119.1,48.19256312]
[1741640495739,39.79626312,119.13,119.08,48.19396312]
[1741640495997,121.59626312,119.14,119.08,48.19396312]
[1741640496390,141.40222416,119.14,119.08,67.99992416]
[1741640496589,141.40222416,119.14,119.1,0.14216157]
[1741640496789,81.8,119.14,119.1,0.14216157]
[1741640497001,141.40222416,119.14,119.09,59.60222416]
[1741640497199,59.60222416,119.13,119.08,67.99992416]
[1741640497901,20.0,119.09,119.04,41.06415363]
[1741640498103,9.86,119.08,119.04,8.6055152]
[1741640498286,9.86,119.08,119.06,59.60222416]
[1741640498978,59.60222416,119.07,119.04,8.46325363]
[1741640499390,59.60222416,119.07,119.04,0.06305363]
[1741640499605,141.40222416,119.06,119.04,0.06305363]
[1741640499788,59.60222416,119.05,119.04,0.06305363]
[1741640499978,141.40222416,119.05,119.04,0.06305363]
[1741640500688,68.2863473,119.05,119.04,0.06305363]
[1741640501707,127.88857146,119.05,119.04,0.06305363]
[1741640502006,68.2863473,119.05,119.04,0.06305363]
[1741640502914,8.3994,119.06,119.04,0.06305363]
[1741640503224,9.88,119.05,119.04,0.06305363]
[1741640503402,69.48222416,119.05,119.04,0.06305363]
[1741640503609,69.7665473,119.05,119.04,0.06305363]
[1741640503911,69.62438573,119.05,119.04,0.06305363]
[1741640504114,69.7665473,119.05,119.04,0.06305363]
[1741640504407,129.36877146,119.05,119.04,0.1524719]
[1741640504609,0.28432314,119.04,119.03,5.288e-05]
[1741640504794,119.48877146,119.04,119.03,4.644e-05]
[1741640505719,81.58046068,119.01,119.0,0.13982251]
[1741640505888,81.58046068,119.01,119.0,0.21664502]
[1741640505889,87.50222416,119.01,119.0,0.21664502]
[1741640506208,27.9,119.01,119.0,0.21664502]
[1741640507609,95.90482416,119.01,119.0,0.21664502]
[1741640507794,96.04698573,119.01,119.0,0.21664502]
[1741640508597,96.1891473,119.01,119.0,0.21664502]
[1741640510417,0.28432314,119.0,118.99,0.06146251]
[1741640510590,360.33207146,119.0,118.99,0.12292502]
[1741640510786,360.33207146,119.0,118.99,0.04917251]
[1741640511108,360.33207146,119.0,118.99,7.251e-05]
[1741640511311,0.9521,118.99,118.98,9.735e-05]
[1741640511612,122.44087146,118.99,118.98,9.735e-05]
[1741640511984,79.74438573,118.96,118.95,0.063]
[1741640512609,88.15048573,118.96,118.95,0.063]
[1741640512795,94.56618573,118.96,118.95,0.063]
[1741640513193,94.7083473,118.96,118.95,0.063]
[1741640514402,0.28432314,118.95,118.94,0.063]
[1741640514611,147.75490989,118.93,118.92,0.063]
[1741640514812,79.60222416,118.93,118.92,0.063]
[1741640514996,88.15268573,118.93,118.92,0.063]
[1741640515410,88.2948473,118.93,118.92,0.063]
[1741640516021,7.9,118.93,118.92,0.063]
[1741640516228,9.88,118.93,118.92,0.063]
[1741640516718,29.88,118.93,118.92,0.063]
[1741640517092,89.48222416,118.93,118.92,0.063]
[1741640517312,98.03268573,118.93,118.92,0.063]
[1741640517824,30.02216157,118.93,118.92,0.063]
[1741640518005,29.88,118.93,118.92,0.063]
[1741640518419,9.88,118.94,118.92,0.063]
[1741640518615,9.88,118.94,118.93,59.74438573]
[1741640518915,222.56,119.0,118.95,0.14216157]
[1741640519097,222.56,119.0,118.97,59.60222416]
[1741640519908,222.56,119.0,118.96,59.60222416]
[1741640520108,282.16222416,119.0,118.94,89.17098573]
[1741640520303,59.60222416,118.99,118.94,89.02882416]
[1741640520503,59.60222416,118.99,118.94,8.4076]
[1741640520738,304.36,119.0,118.96,8.4061]
[1741640521099,304.36,119.0,118.95,8.4067]
[1741640521100,59.60222416,118.99,118.95,8.4067]
[1741640521308,59.60222416,118.99,118.94,68.00982416]
[1741640521514,363.96222416,119.0,118.95,59.60222416]
[1741640521698,304.36,119.0,118.95,59.60222416]
[1741640521898,304.36,119.0,118.96,59.60222416]
[1741640522196,363.96222416,119.0,118.95,59.60222416]
[1741640522826,363.96222416,119.0,118.96,29.4215]
[1741640522827,304.36,119.0,118.96,29.4215]
[1741640522994,304.36,119.0,118.98,59.60222416]
[1741640523198,282.16222416,119.0,118.96,8.4061]
[1741640523405,222.56,119.0,118.96,8.4061]
[1741640523622,282.16222416,119.0,118.96,8.4061]
[1741640523828,222.56,119.0,118.96,8.4061]
[1741640524120,282.16222416,119.0,118.96,8.4061]
[1741640525227,222.56,119.0,118.98,59.60222416]
[1741640525520,222.56,119.0,118.96,89.02372416]
[1741640525827,282.16222416,119.0,118.96,8.4061]
[1741640526029,59.60222416,118.99,118.95,8.4066]
[1741640526195,59.60222416,118.98,118.94,8.4076]
[1741640526401,9.88,118.97,118.94,8.4076]
[1741640526922,77.88772416,118.97,118.93,8.4079]
[1741640527112,59.60222416,118.96,118.92,15.0479]
[1741640527321,141.40222416,118.95,118.92,0.063]
[1741640527621,141.40222416,118.95,118.92,8.4719]
[1741640527827,81.8,118.95,118.92,8.4719]
[1741640528000,141.40222416,118.95,118.92,0.063]
[1741640528200,141.40222416,118.94,118.92,0.063]
[1741640528809,149.44438573,118.93,118.92,0.063]
[1741640529013,68.15268573,118.93,118.92,0.063]
[1741640529718,68.2948473,118.93,118.92,0.063]
[1741640530038,0.14216157,118.89,118.87,0.063]
[1741640530214,69.48222416,118.88,118.87,0.063]
[1741640531242,69.62438573,118.88,118.87,0.063]
[1741640531414,78.1783473,118.88,118.87,0.063]
[1741640531738,79.74438573,118.85,118.84,0.063]
[1741640531903,79.8865473,118.85,118.84,0.063]
[1741640533123,88.3004473,118.85,118.84,0.063]
[1741640534431,27.9,118.85,118.84,0.063]
[1741640534636,19.7125,118.85,118.84,0.063]
[1741640535529,7.9,118.87,118.84,59.66522416]
[1741640535704,9.88,118.88,118.86,59.60222416]
[1741640535899,9.88,118.88,118.85,59.60222416]
[1741640536105,9.88,118.88,118.84,59.66522416]
[1741640536529,9.88,118.88,118.85,59.60222416]
[1741640537409,222.7,118.9,118.87,59.60222416]
[1741640537731,9.88,118.91,118.89,65.84098573]
[1741640537914,9.88,118.91,118.9,59.60222416]
[1741640538812,81.8,118.96,118.91,0.14216157]
[1741640539008,81.8,118.96,118.93,59.60222416]
[1741640539438,81.8,118.96,118.94,8.4076]
[1741640540233,91.68,118.96,118.94,8.4076]
[1741640540615,151.28222416,118.96,118.91,59.60222416]
[1741640540817,81.8,118.95,118.9,59.60222416]
[1741640541036,141.40222416,118.95,118.9,59.60222416]
[1741640541342,141.40222416,118.95,118.9,8.4104]
[1741640542018,59.60222416,118.94,118.89,73.37262416]
[1741640542222,141.40222416,118.95,118.89,73.37262416]
[1741640542842,59.60222416,118.94,118.89,68.01302416]
[1741640543016,59.60222416,118.94,118.89,8.4108]
[1741640543215,81.8,118.95,118.9,59.60222416]
[1741640543633,81.8,118.95,118.91,68.01192416]
[1741640543938,81.8,118.95,118.92,59.60222416]
[1741640544441,91.66,118.95,118.92,59.60222416]
[1741640545946,91.66,118.95,118.91,68.01132416]
[1741640546535,91.66,118.95,118.92,59.60222416]
[1741640547838,81.8,118.95,118.93,8.4083]